fUST/lending_fUST_20250913
["ID","MTS","AMOUNT","RATE_DAILY","PERIOD"]
[385284777,1757743852400,-1472.02942865,0.00027556,2]
[385284778,1757743852409,-3308.75414824,0.00027556,2]
[385284779,1757743852419,-560.33940141,0.00027556,2]
[385284780,1757743852428,-2241.35760563,0.00027556,2]
[385284781,1757743852437,-5038.01155806,0.00027556,2]
[385284782,1757743852447,-1157.45,0.000276,7]
[385284783,1757743852456,-500.0,0.00027615,2]
[385284784,1757743852466,-355.01464627,0.0002764,7]
[385284785,1757743852478,-500.0,0.0002764,2]
[385284786,1757743852488,-647.66342411,0.00027745,7]
[385284787,1757743852497,-157.0,0.00027745,7]
[385284788,1757743852507,-157.0,0.00027745,7]
[385284789,1757743852516,-500.0,0.00027745,7]
[385284790,1757743852525,-157.0,0.00027745,7]
[385284791,1757743852535,-500.0,0.00027745,7]
[385284792,1757743852544,-500.0,0.00027745,7]
[385284793,1757743852554,-282.09562567,0.00027745,7]
[385284794,1757743852564,-157.56279638,0.00027745,7]
[385284795,1757743852573,-500.0,0.0002776,2]
[385284796,1757743852583,-168.0,0.00027783,2]
[385284797,1757743852592,-500.0,0.00027806,2]
[385284798,1757743852601,-779.28129344,0.00027816,5]
[385284799,1757743852610,-1003.48282384,0.00027821,5]
[385284800,1757743852619,-500.0,0.00027831,2]
[385284801,1757743852629,-546.46,0.00027886,4]
[385284802,1757743852639,-500.0,0.00027891,2]
[385284803,1757743852648,-1000.0,0.00027893,10]
[385284804,1757743852657,-500.0,0.00027914,2]
[385284805,1757743852667,-1000.0,0.00027921,5]
[385284806,1757743852676,-1114.69456251,0.00027921,5]
[385284807,1757743852685,-300.0,0.00027921,5]
[385284808,1757743852695,-1000.0,0.00027921,2]
[385284809,1757743852704,-250.0,0.00027921,5]
[385284810,1757743852714,-360.32614467,0.0002794,2]
[385284811,1757743852723,-300.0,0.00027973,5]
[385284812,1757743852732,-500.0,0.00027973,5]
[385284813,1757743852743,-1195.2595859,0.00028,3]
[385284814,1757743852752,-10288.15241663,0.00028,5]
[385284815,1757743852761,-7040.34763619,0.00028,120]
[385284816,1757743852771,-161.0,0.00028,7]
[385284817,1757743852780,-161.0,0.00028,7]
[385284818,1757743852790,-161.0,0.00028,7]
[385284819,1757743852799,-161.0,0.00028,7]
[385284820,1757743852809,-161.0,0.00028,7]
[385284821,1757743852818,-161.0,0.00028,7]
[385284822,1757743852827,-161.0,0.00028,7]
[385284823,1757743852837,-157.88119504,0.00028,7]
[385284824,1757743852846,-1000.0,0.00028,28]
[385284825,1757743852855,-166.0,0.00028,7]
[385284826,1757743852865,-166.0,0.00028,7]
[385284827,1757743852874,-156.0,0.00028,7]
[385284828,1757743852883,-156.0,0.00028,7]
[385284829,1757743852892,-156.0,0.00028,7]
[385284830,1757743852902,-156.0,0.00028,7]
[385284831,1757743852912,-160.99820564,0.00028,7]
[385284832,1757743852921,-151.0,0.00028,7]
[385284833,1757743852930,-154.24264085,0.00028,7]
[385284834,1757743852940,-328.0,0.00028,7]
[385284835,1757743852950,-328.0,0.00028,7]
[385284836,1757743852960,-328.0,0.00028,7]
[385284837,1757743852970,-328.0,0.00028,7]
[385284838,1757743852980,-328.0,0.00028,7]
[385284839,1757743852990,-328.0,0.00028,7]
[385284840,1757743852999,-328.0,0.00028,7]
[385284841,1757743853008,-328.0,0.00028,7]
[385284842,1757743853018,-328.0,0.00028,7]
[385284843,1757743853027,-328.0,0.00028,7]
[385284844,1757743853037,-328.0,0.00028,7]
[385284845,1757743853046,-328.0,0.00028,7]
[385284846,1757743853055,-328.0,0.00028,7]
[385284847,1757743853065,-328.0,0.00028,7]
[385284848,1757743853074,-328.0,0.00028,7]
[385284849,1757743853083,-328.0,0.00028,7]
[385284850,1757743853093,-328.0,0.00028,7]
[385284851,1757743853102,-328.0,0.00028,7]
[385284852,1757743853112,-328.0,0.00028,7]
[385284853,1757743853122,-328.0,0.00028,7]
[385284854,1757743853131,-328.0,0.00028,7]
[385284855,1757743853142,-328.0,0.00028,7]
[385284856,1757743853151,-328.0,0.00028,7]
[385284857,1757743853160,-328.0,0.00028,7]
[385284858,1757743853170,-328.0,0.00028,7]
[385284859,1757743853179,-328.0,0.00028,7]
[385284860,1757743853188,-328.0,0.00028,7]
[385284861,1757743853197,-328.0,0.00028,7]
[385284862,1757743853207,-328.0,0.00028,7]
[385284863,1757743853216,-328.0,0.00028,7]
[385284864,1757743853225,-328.0,0.00028,7]
[385284865,1757743853235,-328.0,0.00028,7]
[385284866,1757743853245,-328.0,0.00028,7]
[385284867,1757743853255,-328.0,0.00028,7]
[385284868,1757743853264,-328.0,0.00028,7]
[385284869,1757743853274,-328.0,0.00028,7]
[385284870,1757743853283,-328.0,0.00028,7]
[385284871,1757743853293,-328.0,0.00028,7]
[385284872,1757743853303,-328.0,0.00028,7]
[385284873,1757743853313,-328.0,0.00028,7]
[385284874,1757743853322,-328.0,0.00028,7]
[385284875,1757743853332,-328.0,0.00028,7]
[385284876,1757743853341,-328.0,0.00028,7]
[385284877,1757743853351,-328.0,0.00028,7]
[385284878,1757743853360,-328.0,0.00028,7]
[385284879,1757743853369,-328.0,0.00028,7]
[385284880,1757743853378,-328.0,0.00028,7]
[385284881,1757743853388,-328.0,0.00028,7]
[385284882,1757743853397,-328.0,0.00028,7]
[385284883,1757743853407,-328.0,0.00028,7]
[385284884,1757743853416,-328.0,0.00028,7]
[385284885,1757743853425,-328.0,0.00028,7]
[385284886,1757743853435,-328.0,0.00028,7]
[385284887,1757743853445,-328.0,0.00028,7]
[385284888,1757743853454,-328.0,0.00028,7]
[385284889,1757743853465,-328.0,0.00028,7]
[385284890,1757743853475,-328.0,0.00028,7]
[385284891,1757743853485,-328.0,0.00028,7]
[385284892,1757743853494,-328.0,0.00028,7]
[385284893,1757743853504,-328.0,0.00028,7]
[385284894,1757743853513,-386.41396278,0.00028,7]
[385284895,1757743853522,-1052.0,0.00028,7]
[385284896,1757743853531,-1052.0,0.00028,7]
[385284897,1757743853540,-1052.0,0.00028,7]
[385284898,1757743853550,-1052.0,0.00028,7]
[385284899,1757743853560,-1052.0,0.00028,7]
[385284900,1757743853570,-1052.0,0.00028,7]
[385284901,1757743853579,-1052.0,0.00028,7]
[385284902,1757743853589,-1052.0,0.00028,7]
[385284903,1757743853598,-1052.0,0.00028,7]
[385284904,1757743853608,-1052.0,0.00028,7]
[385284905,1757743853617,-1052.0,0.00028,7]
[385284906,1757743853627,-1052.0,0.00028,7]
[385284907,1757743853636,-1052.0,0.00028,7]
[385284908,1757743853645,-1052.0,0.00028,7]
[385284909,1757743853655,-1052.0,0.00028,7]
[385284910,1757743853664,-1052.0,0.00028,7]
[385284911,1757743853673,-1052.0,0.00028,7]
[385284912,1757743853683,-1052.0,0.00028,7]
[385284913,1757743853692,-1052.0,0.00028,7]
[385284914,1757743853702,-1052.0,0.00028,7]
[385284915,1757743853712,-1052.0,0.00028,7]
[385284916,1757743853722,-1052.0,0.00028,7]
[385284917,1757743853732,-1052.0,0.00028,7]
[385284918,1757743853742,-1052.0,0.00028,7]
[385284919,1757743853751,-1052.0,0.00028,7]
[385284920,1757743853761,-1052.0,0.00028,7]
[385284921,1757743853770,-1052.0,0.00028,7]
[385284922,1757743853780,-836.02699857,0.00028,7]
[385284923,1757743853789,-313.0,0.00028,120]
[385284924,1757743853799,-500.0,0.0002801,2]
[385284925,1757743853809,-2000.0,0.00028016,5]
[385284926,1757743853818,-157.0,0.00028019,7]
[385284927,1757743853828,-157.0,0.00028019,7]
[385284928,1757743853837,-500.0,0.00028019,7]
[385284929,1757743853846,-306.72637128,0.00028019,7]
[385284930,1757743853856,-235.69895917,0.00028019,7]
[385284931,1757743853865,-500.0,0.00028019,7]
[385284932,1757743853874,-156.075774,0.00028023,15]
[385284933,1757743853884,-1000.0,0.0002803,10]
[385284934,1757743853894,-500.0,0.00028058,2]
[385284935,1757743853903,-500.0,0.00028061,2]
[385284936,1757743853913,-156.075774,0.00028106,3]
[385284937,1757743853923,-2594.94,0.00028128,2]
[385284938,1757743853933,-501.94610468,0.00028147,2]
[385284939,1757743853943,-500.0,0.00028188,2]
[385284940,1757743853952,-500.66080947,0.00028195,5]
[385284941,1757743853962,-156.075774,0.00028208,2]
[385284942,1757743853971,-500.0,0.00028216,2]
[385284943,1757743853981,-233.1568031,0.0002823,30]
[385284944,1757743854086,-500.58843343,0.00028241,2]
[385284945,1757743854096,-579.53747258,0.00028279,2]
[385284946,1757743854106,-157.0,0.00028293,7]
[385284947,1757743854115,-187.90494288,0.00028293,7]
[385284948,1757743854125,-500.0,0.00028293,7]
[385284949,1757743854134,-500.0,0.00028293,7]
[385284950,1757743854144,-355.0,0.00028301,7]
[385284951,1757743854153,-160.0,0.00028324,5]
[385284952,1757743854162,-14184.7637111,0.00028332,2]
[385284953,1757743854171,-584.4874247,0.00028338,30]
[385284954,1757743854180,-295.821047,0.00028338,30]
[385284955,1757743854190,-295.821047,0.00028338,30]
[385284956,1757743854200,-584.4874247,0.00028338,30]
[385284957,1757743854214,-584.4874247,0.00028338,30]
[385284958,1757743854224,-295.821047,0.00028338,30]
[385284959,1757743854233,-295.821047,0.00028338,30]
[385284960,1757743854244,-164.4838675,0.00028367,30]
[385284961,1757743854254,-447.5569014,0.00028367,30]
[385284962,1757743854263,-584.4874247,0.00028367,30]
[385284963,1757743854272,-161.7920066,0.00028367,30]
[385284964,1757743854281,-584.4874247,0.00028367,30]
[385284965,1757743854291,-295.821047,0.00028367,30]
[385284966,1757743854300,-295.821047,0.00028367,30]
[385284967,1757743854310,-584.4874247,0.00028367,30]
[385284968,1757743854319,-161.7920066,0.00028367,30]
[385284969,1757743854328,-584.4874247,0.00028367,30]
[385284970,1757743854338,-295.821047,0.00028367,30]
[385284971,1757743854347,-161.7920066,0.00028367,30]
[385284972,1757743854356,-161.5207314,0.00028367,30]
[385284973,1757743854365,-295.821047,0.00028367,30]
[385284974,1757743854375,-584.4874247,0.00028367,30]
[385284975,1757743854384,-584.4874247,0.00028367,30]
[385284976,1757743854394,-295.821047,0.00028367,30]
[385284977,1757743854403,-584.4874247,0.00028367,30]
[385284978,1757743854414,-295.821047,0.00028367,30]
[385284979,1757743854423,-295.821047,0.00028367,30]
[385284980,1757743854432,-584.4874247,0.00028367,30]
[385284981,1757743854442,-295.821047,0.00028367,30]
[385284982,1757743854451,-584.4874247,0.00028367,30]
[385284983,1757743854460,-295.821047,0.00028367,30]
[385284984,1757743854474,-584.4874247,0.00028367,30]
[385284985,1757743854483,-295.821047,0.00028367,30]
[385284986,1757743854493,-584.4874247,0.00028367,30]
[385284987,1757743854502,-295.821047,0.00028367,30]
[385284988,1757743854511,-584.4874247,0.00028367,30]
[385284989,1757743854521,-584.4874247,0.00028367,30]
[385284990,1757743854531,-295.821047,0.00028367,30]
[385284991,1757743854540,-584.4874247,0.00028367,30]
[385284992,1757743854550,-295.821047,0.00028367,30]
[385284993,1757743854562,-295.821047,0.00028367,30]
[385284994,1757743854571,-584.4874247,0.00028367,30]
[385284995,1757743854580,-295.821047,0.00028367,30]
[385284996,1757743854590,-584.4874247,0.00028367,30]
[385284997,1757743854599,-584.4874247,0.00028367,30]
[385284998,1757743854608,-295.821047,0.00028367,30]
[385284999,1757743854617,-295.821047,0.00028367,30]
[385285000,1757743854627,-584.4874247,0.00028367,30]
[385285001,1757743854636,-295.821047,0.00028367,30]
[385285002,1757743854645,-584.4874247,0.00028367,30]
[385285003,1757743854654,-584.4874247,0.00028367,30]
[385285004,1757743854663,-295.821047,0.00028367,30]
[385285005,1757743854672,-584.4874247,0.00028367,30]
[385285006,1757743854681,-295.821047,0.00028367,30]
[385285007,1757743854690,-584.4874247,0.00028367,30]
[385285008,1757743854699,-295.821047,0.00028367,30]
[385285009,1757743854709,-584.4874247,0.00028367,30]
[385285010,1757743854718,-295.821047,0.00028367,30]
[385285011,1757743854727,-1161.5737536,0.00028367,30]
[385285012,1757743854737,-2581.89830366,0.00028368,2]
[385285013,1757743854746,-500.0,0.00028397,2]
[385285014,1757743854755,-497.91355135,0.00028399,2]
[385285015,1757743854765,-3698.8,0.000284,7]
[385285016,1757743854774,-43215.88,0.000284,7]
[385285017,1757743854783,-217.73838971,0.000284,30]
[385285018,1757743854793,-3000.0,0.00028406,3]
[385285019,1757743854802,-2077.0,0.00028407,7]
[385285020,1757743854812,-358.0,0.00028429,2]
[385285021,1757743854821,-355.0,0.00028434,2]
[385285022,1757743854830,-800.0,0.00028446,2]
[385285023,1757743854839,-2581.89830366,0.00028451,2]
[385285024,1757743854849,-151.0,0.00028461,7]
[385285025,1757743854858,-500.0,0.00028462,2]
[385285026,1757743854868,-500.0,0.00028468,2]
[385285027,1757743854877,-1500.0,0.00028468,5]
[385285028,1757743854887,-450.0,0.00028468,5]
[385285029,1757743854897,-1000.77402898,0.00028468,2]
[385285030,1757743854906,-350.0,0.00028468,5]
[385285031,1757743854915,-1593.04414258,0.000285,7]
[385285032,1757743854924,-1307.12,0.000285,7]
[385285033,1757743854934,-191.72740902,0.00028521,5]
[385285034,1757743854944,-1000.0,0.00028521,5]
[385285035,1757743854953,-2581.89830366,0.00028534,2]
[385285036,1757743854963,-355.0,0.00028558,2]
[385285037,1757743854972,-800.0,0.00028563,2]
[385285038,1757743854981,-2500.0,0.00028564,5]
[385285039,1757743854991,-157.72913138,0.00028567,7]
[385285040,1757743855001,-500.0,0.00028567,7]
[385285041,1757743855010,-186.24859823,0.00028567,7]
[385285042,1757743855019,-156.075774,0.00028572,3]
[385285043,1757743855029,-800.0,0.0002858,2]
[385285044,1757743855038,-800.0,0.00028583,2]
[385285045,1757743855048,-800.0,0.00028593,2]
[385285046,1757743855057,-1157.45,0.000286,7]
[385285047,1757743855067,-800.0,0.00028603,2]
[385285048,1757743855076,-966.45,0.00028616,2]
[385285049,1757743855085,-2581.89830366,0.00028616,2]
[385285050,1757743855095,-417.15472785,0.00028621,2]
[385285051,1757743855103,-217.73838971,0.0002863,2]
[385285052,1757743855113,-500.0,0.00028646,2]
[385285053,1757743855123,-357.0,0.00028647,2]
[385285054,1757743855132,-500.0,0.00028651,2]
[385285055,1757743855142,-5369.0,0.00028657,2]
[385285056,1757743855151,-355.0,0.00028666,2]
[385285057,1757743855160,-355.0,0.00028669,2]
[385285058,1757743855169,-2581.89830366,0.00028699,2]
[385285059,1757743855179,-355.0,0.00028706,2]
[385285060,1757743855189,-1000.0,0.00028711,20]
[385285061,1757743855199,-156.075774,0.00028725,2]
[385285062,1757743855208,-209.0,0.0002873,30]
[385285063,1757743855217,-500.0,0.00028736,2]
[385285064,1757743855227,-800.0,0.0002874,2]
[385285065,1757743855237,-4000.0,0.0002876,5]
[385285066,1757743855247,-200.10888635,0.00028767,5]
[385285067,1757743855256,-2581.89830366,0.00028782,2]
[385285068,1757743855265,-500.0,0.00028789,2]
[385285069,1757743855275,-168.69085998,0.000288,7]
[385285070,1757743855284,-896.42,0.000288,120]
[385285071,1757743855293,-151.0,0.00028808,7]
[385285072,1757743855302,-357.0,0.00028818,2]
[385285073,1757743855312,-800.0,0.00028829,2]
[385285074,1757743855321,-800.0,0.00028833,2]
[385285075,1757743855331,-31676.93873244,0.0002884,30]
[385285076,1757743855340,-10587.83715118,0.0002884,30]
[385285077,1757743855350,-384.17667725,0.00028841,7]
[385285078,1757743855360,-800.0,0.00028846,2]
[385285079,1757743855369,-2581.89830366,0.00028865,2]
[385285080,1757743855379,-800.0,0.00028895,2]
[385285081,1757743855388,-4000.0,0.00028896,3]
[385285082,1757743855398,-156.075774,0.00028924,30]
[385285083,1757743855407,-800.0,0.00028938,2]
[385285084,1757743855417,-800.0,0.00028941,2]
[385285085,1757743855426,-2581.89830366,0.00028947,2]
[385285086,1757743855435,-156.075774,0.00028952,30]
[385285087,1757743855445,-800.0,0.00028983,2]
[385285088,1757743855454,-7349.97958061,0.0002899,2]
[385285089,1757743855464,-2000.0,0.00029,2]
[385285090,1757743855477,-877.34064837,0.00029,2]
[385285091,1757743855487,-209.0,0.00029,2]
[385285092,1757743855497,-1000.0,0.00029,29]
[385285093,1757743855507,-217.73838971,0.00029,3]
[385285094,1757743855516,-847.12775373,0.00029,3]
[385285095,1757743855526,-417.15472785,0.00029,3]
[385285096,1757743855536,-417.15472785,0.00029,30]
[385285097,1757743855547,-160.0,0.00029,30]
[385285098,1757743855557,-531.13137412,0.00029,3]
[385285099,1757743855567,-531.13137412,0.00029,30]
[385285100,1757743855577,-351.10368381,0.00029009,7]
[385285101,1757743855586,-500.0,0.0002901,2]
[385285102,1757743855596,-2700.0,0.0002901,7]
[385285103,1757743855606,-2000.0,0.00029016,5]
[385285104,1757743855615,-600.0,0.00029016,5]
[385285105,1757743855625,-450.0,0.00029016,5]
[385285106,1757743855635,-507.7999097,0.00029027,2]
[385285107,1757743855645,-2581.89830366,0.0002903,2]
[385285108,1757743855654,-156.075774,0.00029038,3]
[385285109,1757743855664,-40687.4109818,0.0002904,2]
[385285110,1757743855675,-14872.98221113,0.00029041,5]
[385285111,1757743855685,-3165.0485985,0.00029042,2]
[385285112,1757743855695,-800.0,0.00029065,2]
[385285113,1757743855704,-800.0,0.00029066,2]
[385285114,1757743855714,-355.0,0.00029066,2]
[385285115,1757743855723,-1290.40870766,0.00029068,5]
[385285116,1757743855732,-156.075774,0.00029088,20]
[385285117,1757743855744,-160.0,0.00029092,6]
[385285118,1757743855753,-160.9255242,0.00029092,5]
[385285119,1757743855763,-156.075774,0.000291,15]
[385285120,1757743855772,-1001.863534,0.000291,2]
[385285121,1757743855782,-1506.1672859,0.00029112,5]
[385285122,1757743855791,-2608.13010563,0.00029113,2]
[385285123,1757743855800,-360.32614467,0.00029113,2]
[385285124,1757743855810,-2139.86985211,0.00029113,2]
[385285125,1757743855819,-2581.89830366,0.00029113,2]
[385285126,1757743855829,-156.075774,0.00029123,20]
[385285127,1757743855838,-800.0,0.00029136,2]
[385285128,1757743855847,-209.0,0.0002915,30]
[385285129,1757743855856,-500.0,0.0002915,5]
[385285130,1757743855865,-500.0,0.0002915,20]
[385285131,1757743855876,-500.0,0.0002915,20]
[385285132,1757743855885,-500.0,0.0002915,5]
[385285133,1757743855894,-500.0,0.0002915,5]
[385285134,1757743855903,-500.0,0.00029154,11]
[385285135,1757743855912,-500.0,0.00029154,11]
[385285136,1757743855922,-151.0,0.00029154,7]
[385285137,1757743855932,-303.08663164,0.00029155,2]
[385285138,1757743855941,-156.075774,0.00029159,20]
[385285139,1757743855951,-2129.38623738,0.0002916,2]
[385285140,1757743855961,-902.07,0.0002916,60]
[385285141,1757743855970,-3145.96351661,0.00029182,2]
[385285142,1757743855980,-250.0,0.000292,7]
[385285143,1757743855990,-250.0,0.000292,7]
[385285144,1757743856000,-250.0,0.000292,7]
[385285145,1757743856009,-250.0,0.000292,7]
[385285146,1757743856019,-250.0,0.000292,7]
[385285147,1757743856028,-256.6,0.000292,7]
[385285148,1757743856037,-186.0,0.00029213,2]
[385285149,1757743856047,-835596.62789835,0.00029213,20]
[385285150,1757743856287,-73626.3428208,0.00029213,20]
[385285151,1757743856298,-172799.11568835,0.00029213,20]
[385285152,1757743856309,-3055.5893695,0.00029213,2]
[385285153,1757743856318,-2511.02944313,0.00029213,7]
[385285154,1757743856328,-590.21412,0.00029213,31]
[385285155,1757743856338,-157.7,0.00029213,2]
[385285156,1757743856347,-2214.02831676,0.00029213,30]
[385285157,1757743856356,-309.41794518,0.00029213,30]
[385285158,1757743856366,-247.17207902,0.00029213,30]
[385285159,1757743856375,-677.36512206,0.00029213,30]
[385285160,1757743856384,-428.31610835,0.00029213,30]
[385285161,1757743856394,-1050.89798527,0.00029213,30]
[385285162,1757743856403,-179.43085376,0.00029213,30]
[385285163,1757743856412,-1387.69471064,0.00029213,2]
[385285164,1757743856422,-355.30679482,0.00029213,30]
[385285165,1757743856432,-3460974.4559255,0.00029213,20]
[385285166,1757743856920,-1000.0,0.00025137,2]
[385285167,1757743856930,-1000.0,0.00025137,2]
[385285168,1757743856939,-1000.0,0.00025137,2]
[385285169,1757743856949,-1000.0,0.00025137,2]
[385285170,1757743856958,-1000.0,0.00025137,2]
[385285171,1757743856967,-1000.0,0.00025137,2]
[385285172,1757743856976,-1000.0,0.00025137,2]
[385285173,1757743856985,-1000.0,0.00025137,2]
[385285174,1757743856995,-194.83906249,0.00025137,2]
[385285175,1757744053053,300.0,0.00027397,120]
[385285176,1757744361605,300.0,0.00027397,120]
[385285177,1757744572941,2755.05220762,0.0002739,120]
[385285178,1757744668335,300.0,0.00027397,120]
[385285196,1757744974468,300.0,0.00027397,120]
[385285210,1757745032589,-508.77698935,0.0001818,14]
[385285211,1757745032653,-607.58513739,0.0001818,14]
[385285212,1757745032666,-3883.63787326,0.0001818,14]
[385285213,1757745032676,-300.0,0.00019899,2]
[385285214,1757745032686,-1200.0,0.00019899,2]
[385285215,1757745032696,-300.0,0.00020297,20]
[385285216,1757745032706,-300.0,0.00020297,20]
[385285217,1757745032715,-300.0,0.00020297,20]
[385285218,1757745032724,-300.0,0.00020297,20]
[385285219,1757745032733,-300.0,0.00020297,20]
[385285220,1757745032742,-300.0,0.00020297,20]
[385285221,1757745032752,-300.0,0.00020297,20]
[385285222,1757745032761,-300.0,0.00020297,20]
[385285223,1757745032771,-300.0,0.00020297,20]
[385285224,1757745032780,-300.0,0.00020297,20]
[385285225,1757745032790,-300.0,0.00020297,20]
[385285226,1757745032800,-300.0,0.00020297,20]
[385285227,1757745032810,-300.0,0.00020297,20]
[385285228,1757745032819,-300.0,0.00020297,20]
[385285229,1757745032829,-300.0,0.00020297,20]
[385285230,1757745032839,-502.85502096,0.00021325,2]
[385285231,1757745032848,-500.0,0.00021325,2]
[385285232,1757745032857,-259.36551368,0.00021325,2]
[385285234,1757745032867,-500.0,0.00021325,2]
[385285235,1757745032876,-555.81708359,0.00021614,2]
[385285236,1757745032885,-500.0,0.00021614,2]
[385285237,1757745032894,-500.53318302,0.00021614,2]
[385285238,1757745032903,-500.74954946,0.00021614,2]
[385285239,1757745032912,-533.56872063,0.00021614,2]
[385285240,1757745032922,-500.94542489,0.0002222,2]
[385285241,1757745032931,-500.0,0.0002222,2]
[385285242,1757745032940,-500.0,0.0002222,2]
[385285244,1757745032949,-500.0,0.0002222,2]
[385285245,1757745032958,-244.07958149,0.00022257,2]
[385285246,1757745032967,-500.0,0.00022257,2]
[385285247,1757745032977,-600.0,0.00022701,20]
[385285248,1757745032986,-500.0,0.000232,2]
[385285249,1757745032996,-173.827,0.00024037,5]
[385285250,1757745033005,-160.0,0.00024037,2]
[385285251,1757745033014,-847.12775373,0.00024037,2]
[385285252,1757745033024,-233.1568031,0.00024037,2]
[385285253,1757745033034,-160.0,0.0002404,2]
[385285254,1757745033043,-217.73838971,0.0002404,2]
[385285255,1757745033052,-720.0,0.00024971,20]
[385285256,1757745033061,-2238.59810245,0.00025,7]
[385285257,1757745033073,-1142.1,0.00025,7]
[385285267,1757745038359,-601.72,0.00017998,14]
[385285269,1757745038368,-1079.6678448,0.00025,7]
[385285271,1757745038379,-423.79166931,0.00025,7]
[385285272,1757745038390,-469.13541551,0.00025,7]
[385285273,1757745038419,-874.54151423,0.00025,7]
[385285274,1757745038430,-2402.23014582,0.00025,7]
[385285275,1757745038439,-161.0,0.00025,7]
[385285276,1757745038448,-161.0,0.00025,7]
[385285277,1757745038457,-161.0,0.00025,10]
[385285278,1757745038466,-161.0,0.00025,10]
[385285279,1757745038475,-153.08382945,0.0002578,2]
[385285280,1757745038485,-366.37,0.0002698,3]
[385285281,1757745038494,-183.18,0.0002698,3]
[385285282,1757745038503,-549.59,0.0002698,3]
[385285284,1757745038512,-725.49066661,0.0002699,2]
[385285285,1757745038524,-2683.89436052,0.0002699,2]
[385285443,1757745044248,-5000.0,0.00024953,14]
[385285445,1757745044258,-32784.92033396,0.0002699,2]
[385285798,1757745280721,411.94395249,0.00027397,120]
[385285855,1757746232899,-5000.0,0.00019008,14]
[385285856,1757746232911,-500.0,0.000192,2]
[385285857,1757746232923,-1200.0,0.00019899,2]
[385285859,1757746232935,-5726.30496042,0.000199,2]
[385285861,1757746232950,-1189.11043154,0.000199,2]
[385285863,1757746232964,-146.0269248,0.00020172,2]
[385285866,1757746232977,-130.8441043,0.00020172,2]
[385285868,1757746232989,-1000.0,0.00020296,2]
[385285870,1757746233001,-6915.41539185,0.00021149,2]
[385285873,1757746233013,-1500.0,0.00021392,2]
[385285875,1757746233026,-12506.1340539,0.00021571,2]
[385285877,1757746233038,-300.0,0.00021571,20]
[385285880,1757746233049,-300.0,0.00021571,20]
[385285882,1757746233061,-300.0,0.00021571,20]
[385285884,1757746233073,-762.18005156,0.00021605,2]
[385285886,1757746233086,-6915.41539185,0.00022398,2]
[385285889,1757746233098,-154.46071161,0.00022488,2]
[385285891,1757746233110,-6915.41539185,0.00023647,2]
[385285893,1757746233121,-173.827,0.00023964,5]
[385285896,1757746233133,-160.0,0.00024087,2]
[385285898,1757746233145,-417.15472785,0.00024087,2]
[385285900,1757746233156,-847.12775373,0.00024087,2]
[385285902,1757746233168,-217.73838971,0.00024087,2]
[385285905,1757746233181,-160.0,0.00024233,2]
[385285907,1757746233193,-188.67344017,0.00024759,2]
[385285909,1757746233204,-260.0,0.00024781,2]
[385285911,1757746233215,-499.80530539,0.0002489,7]
[385285914,1757746233227,-6915.41539185,0.00024896,2]
[385285916,1757746233238,-360.0,0.00025329,2]
[385285918,1757746233250,-6865.5102741,0.00025533,2]
[385285920,1757746233261,-2519.74674342,0.00025533,2]
[385285924,1757746233281,-995.41106428,0.00025533,2]